fUST/lending_fUST_20250628
["ID","MTS","AMOUNT","RATE_DAILY","PERIOD"]
[368327133,1751121046275,-711.04,0.00020273,2]
[368327134,1751121046284,-460.0,0.00020273,2]
[368327135,1751121046293,-1085.24,0.00020273,2]
[368327136,1751121046303,-460.0,0.00020273,2]
[368327137,1751121046312,-2000.47,0.00020273,2]
[368327138,1751121046322,-460.0,0.00020273,2]
[368327139,1751121046331,-460.0,0.00020273,2]
[368327140,1751121046340,-464.32,0.00020273,2]
[368327141,1751121046350,-460.0,0.00020273,2]
[368327142,1751121046359,-460.0,0.00020273,2]
[368327143,1751121046368,-460.0,0.00020273,2]
[368327144,1751121046378,-1516.03,0.00020273,2]
[368327145,1751121046387,-2420.5,0.00020273,2]
[368327146,1751121046397,-460.0,0.00020273,2]
[368327147,1751121046406,-2718.97,0.00020273,2]
[368327148,1751121046415,-907.82,0.00020273,2]
[368327149,1751121046425,-463.02,0.00020273,2]
[368327151,1751121046435,-460.0,0.00020273,2]
[368327152,1751121046445,-460.0,0.00020273,2]
[368327153,1751121046454,-460.0,0.00020273,2]
[368327154,1751121046465,-460.0,0.00020273,2]
[368327155,1751121046475,-1021.59,0.00020273,2]
[368327156,1751121046484,-765.19,0.00020273,2]
[368327157,1751121046494,-851.31,0.00020273,2]
[368327158,1751121046504,-591.41,0.00020273,2]
[368327159,1751121046514,-460.0,0.00020273,2]
[368327160,1751121046525,-460.0,0.00020273,2]
[368327161,1751121046534,-1182.0,0.00020274,2]
[368327162,1751121046545,-1182.0,0.00020301,2]
[368327163,1751121046554,-3222.09333918,0.00020314,3]
[368327164,1751121046563,-1182.0,0.00020329,2]
[368327165,1751121046573,-1204.0,0.00020356,2]
[368327166,1751121046583,-3222.09333918,0.00020521,3]
[368327167,1751121046592,-171.55263495,0.00020546,2]
[368327168,1751121046601,-151.0,0.00020547,2]
[368327169,1751121046610,-151.0,0.00020547,2]
[368327170,1751121046619,-151.0,0.00020547,2]
[368327171,1751121046628,-151.0,0.00020547,2]
[368327172,1751121046638,-151.0,0.00020547,2]
[368327173,1751121046649,-151.0,0.00020547,2]
[368327174,1751121046658,-470.80306,0.00020547,2]
[368327175,1751121046668,-470.80306,0.00020547,2]
[368327176,1751121046679,-460.0,0.00020547,2]
[368327177,1751121046688,-460.0,0.00020547,2]
[368327178,1751121046698,-460.0,0.00020547,2]
[368327179,1751121046707,-460.0,0.00020547,2]
[368327180,1751121046719,-460.0,0.00020547,2]
[368327181,1751121046728,-814.56,0.00020547,2]
[368327182,1751121046737,-460.0,0.00020547,2]
[368327183,1751121046746,-460.0,0.00020547,2]
[368327184,1751121046755,-922.31,0.00020547,2]
[368327185,1751121046764,-460.0,0.00020547,2]
[368327186,1751121046774,-460.0,0.00020547,2]
[368327187,1751121046783,-460.0,0.00020547,2]
[368327188,1751121046793,-566.23,0.00020547,2]
[368327189,1751121046802,-1143.53,0.00020547,2]
[368327190,1751121046811,-460.0,0.00020547,2]
[368327191,1751121046821,-460.0,0.00020547,2]
[368327192,1751121046830,-460.0,0.00020547,2]
[368327193,1751121046839,-460.0,0.00020547,2]
[368327194,1751121046849,-523.43067996,0.00020547,2]
[368327195,1751121046859,-915.18,0.00020547,2]
[368327196,1751121046868,-460.0,0.00020547,2]
[368327197,1751121046878,-460.0,0.00020547,2]
[368327198,1751121046887,-1185.83,0.00020547,2]
[368327199,1751121046897,-460.0,0.00020547,2]
[368327200,1751121046906,-460.0,0.00020547,2]
[368327201,1751121047028,-615.29,0.00020547,2]
[368327202,1751121047038,-1009.76,0.00020547,2]
[368327203,1751121047048,-1416.99,0.00020547,2]
[368327204,1751121047057,-711.04,0.00020547,2]
[368327205,1751121047067,-460.0,0.00020547,2]
[368327206,1751121047077,-1085.24,0.00020547,2]
[368327207,1751121047086,-460.0,0.00020547,2]
[368327208,1751121047096,-460.0,0.00020547,2]
[368327209,1751121047105,-2000.47,0.00020547,2]
[368327210,1751121047115,-460.0,0.00020547,2]
[368327211,1751121047124,-464.32,0.00020547,2]
[368327212,1751121047133,-460.0,0.00020547,2]
[368327213,1751121047143,-500.0,0.00020547,14]
[368327214,1751121047152,-460.0,0.00020547,2]
[368327215,1751121047162,-460.0,0.00020547,2]
[368327216,1751121047171,-1516.03,0.00020547,2]
[368327217,1751121047181,-2420.5,0.00020547,2]
[368327218,1751121047190,-460.0,0.00020547,2]
[368327219,1751121047199,-2718.97,0.00020547,2]
[368327220,1751121047209,-907.82,0.00020547,2]
[368327221,1751121047218,-463.02,0.00020547,2]
[368327222,1751121047227,-460.0,0.00020547,2]
[368327223,1751121047236,-460.0,0.00020547,2]
[368327224,1751121047246,-460.0,0.00020547,2]
[368327225,1751121047255,-460.0,0.00020547,2]
[368327226,1751121047264,-1021.59,0.00020547,2]
[368327227,1751121047273,-765.19,0.00020547,2]
[368327228,1751121047283,-851.31,0.00020547,2]
[368327229,1751121047292,-591.41,0.00020547,2]
[368327230,1751121047301,-460.0,0.00020547,2]
[368327231,1751121047311,-460.0,0.00020547,2]
[368327232,1751121047320,-2495.3,0.000206,2]
[368327233,1751121047329,-271.192,0.0002069,2]
[368327234,1751121047338,-3222.09333918,0.00020728,3]
[368327235,1751121047347,-460.0,0.00020821,2]
[368327236,1751121047356,-460.0,0.00020821,2]
[368327237,1751121047366,-460.0,0.00020821,2]
[368327238,1751121047375,-460.0,0.00020821,2]
[368327239,1751121047384,-460.0,0.00020821,2]
[368327240,1751121047393,-814.56,0.00020821,2]
[368327241,1751121047403,-460.0,0.00020821,2]
[368327242,1751121047412,-460.0,0.00020821,2]
[368327243,1751121047422,-922.31,0.00020821,2]
[368327244,1751121047431,-460.0,0.00020821,2]
[368327245,1751121047441,-460.0,0.00020821,2]
[368327246,1751121047450,-170.60033148,0.00020821,2]
[368327247,1751121047459,-566.23,0.00020821,2]
[368327248,1751121047468,-1143.53,0.00020821,2]
[368327249,1751121047478,-460.0,0.00020821,2]
[368327250,1751121047488,-460.0,0.00020821,2]
[368327251,1751121047497,-460.0,0.00020821,2]
[368327252,1751121047507,-195.20681827,0.00020821,2]
[368327253,1751121047516,-915.18,0.00020821,2]
[368327254,1751121047525,-460.0,0.00020821,2]
[368327255,1751121047535,-460.0,0.00020821,2]
[368327256,1751121047544,-1185.83,0.00020821,2]
[368327257,1751121047553,-460.0,0.00020821,2]
[368327258,1751121047563,-460.0,0.00020821,2]
[368327259,1751121047572,-615.29,0.00020821,2]
[368327260,1751121047581,-1009.76,0.00020821,2]
[368327261,1751121047591,-711.04,0.00020821,2]
[368327262,1751121047600,-1416.99,0.00020821,2]
[368327263,1751121047609,-460.0,0.00020821,2]
[368327264,1751121047619,-1085.24,0.00020821,2]
[368327265,1751121047628,-460.0,0.00020821,2]
[368327266,1751121047637,-2000.47,0.00020821,2]
[368327267,1751121047647,-460.0,0.00020821,2]
[368327268,1751121047656,-460.0,0.00020821,2]
[368327269,1751121047665,-464.32,0.00020821,2]
[368327270,1751121047675,-460.0,0.00020821,2]
[368327271,1751121047684,-460.0,0.00020821,2]
[368327272,1751121047693,-460.0,0.00020821,2]
[368327273,1751121047702,-1516.03,0.00020821,2]
[368327274,1751121047712,-2420.5,0.00020821,2]
[368327275,1751121047721,-460.0,0.00020821,2]
[368327276,1751121047731,-2718.97,0.00020821,2]
[368327277,1751121047741,-907.82,0.00020821,2]
[368327278,1751121047751,-463.02,0.00020821,2]
[368327279,1751121047760,-583.54815558,0.00020821,2]
[368327280,1751121047770,-460.0,0.00020821,2]
[368327281,1751121047779,-460.0,0.00020821,2]
[368327282,1751121047788,-460.0,0.00020821,2]
[368327283,1751121047798,-1021.59,0.00020821,2]
[368327284,1751121047808,-765.19,0.00020821,2]
[368327285,1751121047817,-851.31,0.00020821,2]
[368327286,1751121047826,-591.41,0.00020821,2]
[368327287,1751121047836,-460.0,0.00020821,2]
[368327288,1751121047845,-460.0,0.00020821,2]
[368327289,1751121047854,-690.642,0.0002086,2]
[368327290,1751121047864,-207.4,0.0002086,2]
[368327291,1751121047873,-1800.0,0.0002086,2]
[368327292,1751121047883,-500.0,0.0002086,2]
[368327293,1751121047892,-1800.0,0.0002086,2]
[368327294,1751121047902,-1800.0,0.0002086,2]
[368327295,1751121047911,-1800.0,0.0002086,2]
[368327296,1751121047920,-1800.0,0.0002086,2]
[368327297,1751121047930,-1800.0,0.0002086,2]
[368327298,1751121047939,-1800.0,0.0002086,2]
[368327299,1751121047948,-1800.0,0.0002086,2]
[368327300,1751121047958,-500.0,0.0002086,2]
[368327301,1751121047968,-500.0,0.0002086,2]
[368327302,1751121047977,-1800.0,0.0002086,2]
[368327303,1751121047987,-500.0,0.0002086,2]
[368327304,1751121047997,-1800.0,0.0002086,2]
[368327305,1751121048006,-500.0,0.0002086,2]
[368327306,1751121048015,-1800.0,0.0002086,2]
[368327307,1751121048025,-1800.0,0.0002086,2]
[368327308,1751121048034,-1800.0,0.0002086,2]
[368327309,1751121048044,-1800.0,0.0002086,2]
[368327310,1751121048058,-1800.0,0.0002086,2]
[368327311,1751121048067,-1812.85085563,0.0002086,2]
[368327312,1751121048076,-267.12924259,0.00020915,2]
[368327313,1751121048086,-3222.09333918,0.00020934,4]
[368327314,1751121048096,-151.0,0.00021,2]
[368327315,1751121048105,-151.0,0.00021,2]
[368327316,1751121048115,-2373.76502793,0.00021075,2]
[368327317,1751121048125,-460.0,0.00021095,2]
[368327318,1751121048135,-460.0,0.00021095,2]
[368327319,1751121048144,-460.0,0.00021095,2]
[368327320,1751121048154,-460.0,0.00021095,2]
[368327321,1751121048163,-460.0,0.00021095,2]
[368327322,1751121048173,-814.56,0.00021095,2]
[368327323,1751121048182,-460.0,0.00021095,2]
[368327324,1751121048192,-460.0,0.00021095,2]
[368327325,1751121048201,-922.31,0.00021095,2]
[368327326,1751121048210,-460.0,0.00021095,2]
[368327327,1751121048220,-460.0,0.00021095,2]
[368327328,1751121048229,-566.23,0.00021095,2]
[368327329,1751121048239,-1143.53,0.00021095,2]
[368327330,1751121048248,-460.0,0.00021095,2]
[368327331,1751121048257,-460.0,0.00021095,2]
[368327332,1751121048267,-460.0,0.00021095,2]
[368327333,1751121048276,-915.18,0.00021095,2]
[368327334,1751121048285,-460.0,0.00021095,2]
[368327335,1751121048295,-460.0,0.00021095,2]
[368327336,1751121048304,-1185.83,0.00021095,2]
[368327337,1751121048313,-460.0,0.00021095,2]
[368327338,1751121048323,-460.0,0.00021095,2]
[368327339,1751121048332,-615.29,0.00021095,2]
[368327340,1751121048341,-1009.76,0.00021095,2]
[368327341,1751121048351,-711.04,0.00021095,2]
[368327342,1751121048360,-1416.99,0.00021095,2]
[368327343,1751121048369,-460.0,0.00021095,2]
[368327344,1751121048378,-1085.24,0.00021095,2]
[368327345,1751121048387,-460.0,0.00021095,2]
[368327346,1751121048397,-2000.47,0.00021095,2]
[368327347,1751121048406,-460.0,0.00021095,2]
[368327348,1751121048415,-460.0,0.00021095,2]
[368327349,1751121048424,-464.32,0.00021095,2]
[368327350,1751121048433,-460.0,0.00021095,2]
[368327351,1751121048443,-460.0,0.00021095,2]
[368327352,1751121048452,-1516.03,0.00021095,2]
[368327353,1751121048461,-2420.5,0.00021095,2]
[368327354,1751121048470,-2718.97,0.00021095,2]
[368327355,1751121048479,-907.82,0.00021095,2]
[368327356,1751121048488,-463.02,0.00021095,2]
[368327357,1751121048498,-460.0,0.00021095,2]
[368327358,1751121048507,-460.0,0.00021095,2]
[368327359,1751121048516,-460.0,0.00021095,2]
[368327360,1751121048526,-1021.59,0.00021095,2]
[368327361,1751121048535,-765.19,0.00021095,2]
[368327362,1751121048545,-851.31,0.00021095,2]
[368327363,1751121048554,-591.41,0.00021095,2]
[368327364,1751121048564,-460.0,0.00021095,2]
[368327365,1751121048573,-460.0,0.00021095,2]
[368327366,1751121048583,-3222.09333918,0.00021141,4]
[368327367,1751121048592,-160.0,0.0002121,3]
[368327368,1751121048601,-500.0,0.00021254,2]
[368327369,1751121048611,-500.0,0.00021254,2]
[368327370,1751121048620,-500.0,0.00021254,2]
[368327371,1751121048629,-500.0,0.00021254,2]
[368327372,1751121048638,-500.0,0.00021307,2]
[368327373,1751121048648,-160.0,0.00021307,2]
[368327374,1751121048657,-600.0,0.00021307,2]
[368327375,1751121048667,-500.0,0.00021307,2]
[368327376,1751121048676,-500.0,0.00021307,2]
[368327377,1751121048685,-500.0,0.00021307,2]
[368327378,1751121048695,-500.79162839,0.00021307,2]
[368327379,1751121048704,-3222.09333918,0.00021348,5]
[368327380,1751121048713,-151.0,0.00021369,2]
[368327381,1751121048723,-460.0,0.00021369,2]
[368327382,1751121048733,-460.0,0.00021369,2]
[368327383,1751121048742,-460.0,0.00021369,2]
[368327384,1751121048751,-460.0,0.00021369,2]
[368327385,1751121048761,-525.70259143,0.00021369,2]
[368327386,1751121048770,-814.56,0.00021369,2]
[368327387,1751121048780,-460.0,0.00021369,2]
[368327388,1751121048790,-460.0,0.00021369,2]
[368327389,1751121048799,-922.31,0.00021369,2]
[368327390,1751121048809,-460.0,0.00021369,2]
[368327391,1751121048819,-460.0,0.00021369,2]
[368327392,1751121048829,-566.23,0.00021369,2]
[368327393,1751121048838,-1143.53,0.00021369,2]
[368327394,1751121048847,-460.0,0.00021369,2]
[368327395,1751121048857,-460.0,0.00021369,2]
[368327396,1751121048867,-460.0,0.00021369,2]
[368327397,1751121048876,-915.18,0.00021369,2]
[368327398,1751121048885,-460.0,0.00021369,2]
[368327399,1751121048895,-460.0,0.00021369,2]
[368327400,1751121048904,-1185.83,0.00021369,2]
[368327401,1751121048913,-460.0,0.00021369,2]
[368327402,1751121048922,-460.0,0.00021369,2]
[368327403,1751121048931,-615.29,0.00021369,2]
[368327404,1751121048941,-1009.76,0.00021369,2]
[368327405,1751121048950,-1416.99,0.00021369,2]
[368327406,1751121048960,-711.04,0.00021369,2]
[368327407,1751121048970,-460.0,0.00021369,2]
[368327408,1751121048980,-1085.24,0.00021369,2]
[368327409,1751121048989,-460.0,0.00021369,2]
[368327410,1751121048998,-2000.47,0.00021369,2]
[368327411,1751121049008,-460.0,0.00021369,2]
[368327412,1751121049018,-460.0,0.00021369,2]
[368327413,1751121049027,-464.32,0.00021369,2]
[368327414,1751121049036,-460.0,0.00021369,2]
[368327415,1751121049045,-562.80643297,0.00021369,2]
[368327416,1751121049055,-1516.03,0.00021369,2]
[368327417,1751121049064,-2420.5,0.00021369,2]
[368327418,1751121049074,-2718.97,0.00021369,2]
[368327419,1751121049084,-907.82,0.00021369,2]
[368327420,1751121049093,-463.02,0.00021369,2]
[368327421,1751121049103,-525.18633602,0.00021369,2]
[368327422,1751121049112,-460.0,0.00021369,2]
[368327423,1751121049121,-460.0,0.00021369,2]
[368327424,1751121049130,-1021.59,0.00021369,2]
[368327425,1751121049139,-765.19,0.00021369,2]
[368327426,1751121049149,-851.31,0.00021369,2]
[368327427,1751121049158,-591.41,0.00021369,2]
[368327428,1751121049167,-460.0,0.00021369,2]
[368327429,1751121049176,-460.0,0.00021369,2]
[368327430,1751121049185,-500.0,0.0002138,2]
[368327431,1751121049194,-151.0,0.000215,2]
[368327432,1751121049203,-151.0,0.000215,2]
[368327433,1751121049213,-151.0,0.000215,2]
[368327434,1751121049222,-470.80306,0.000215,2]
[368327435,1751121049231,-470.80306,0.000215,2]
[368327436,1751121049240,-3222.09333918,0.00021555,5]
[368327437,1751121049250,-500.0,0.00021585,2]
[368327438,1751121049259,-500.0,0.00021585,2]
[368327439,1751121049268,-500.0,0.00021585,2]
[368327440,1751121049277,-500.0,0.00021585,2]
[368327441,1751121049287,-500.0,0.00021585,2]
[368327442,1751121049296,-508.79784952,0.00021585,2]
[368327443,1751121049305,-500.0,0.00021585,2]
[368327444,1751121049314,-460.0,0.00021643,2]
[368327445,1751121049323,-523.26130187,0.00021643,2]
[368327446,1751121049332,-460.0,0.00021643,2]
[368327447,1751121049342,-460.0,0.00021643,2]
[368327448,1751121049351,-814.56,0.00021643,2]
[368327449,1751121049360,-460.0,0.00021643,2]
[368327450,1751121049369,-569.65,0.00021643,2]
[368327451,1751121049378,-922.31,0.00021643,2]
[368327452,1751121049388,-460.0,0.00021643,2]
[368327453,1751121049397,-485.68,0.00021643,2]
[368327454,1751121049406,-566.23,0.00021643,2]
[368327455,1751121049416,-1143.53,0.00021643,2]
[368327456,1751121049425,-460.0,0.00021643,2]
[368327457,1751121049435,-460.0,0.00021643,2]
[368327458,1751121049444,-460.0,0.00021643,2]
[368327459,1751121049453,-915.18,0.00021643,2]
[368327460,1751121049462,-460.0,0.00021643,2]
[368327461,1751121049471,-460.0,0.00021643,2]
[368327462,1751121049480,-1185.83,0.00021643,2]
[368327463,1751121049490,-460.0,0.00021643,2]
[368327464,1751121049499,-460.0,0.00021643,2]
[368327465,1751121049508,-615.29,0.00021643,2]
[368327466,1751121049517,-1009.76,0.00021643,2]
[368327467,1751121049527,-1416.99,0.00021643,2]
[368327468,1751121049536,-711.04,0.00021643,2]
[368327469,1751121049545,-460.0,0.00021643,2]
[368327470,1751121049554,-1085.24,0.00021643,2]
[368327471,1751121049563,-460.0,0.00021643,2]
[368327472,1751121049572,-460.0,0.00021643,2]
[368327473,1751121049582,-2000.47,0.00021643,2]
[368327474,1751121049591,-460.0,0.00021643,2]
[368327475,1751121049600,-464.32,0.00021643,2]
[368327476,1751121049609,-460.0,0.00021643,2]
[368327477,1751121049618,-1516.03,0.00021643,2]
[368327478,1751121049627,-2420.5,0.00021643,2]
[368327479,1751121049636,-2718.97,0.00021643,2]
[368327480,1751121049645,-907.82,0.00021643,2]
[368327481,1751121049655,-463.02,0.00021643,2]
[368327482,1751121049769,-460.0,0.00021643,2]
[368327483,1751121049779,-460.0,0.00021643,2]
[368327484,1751121049788,-1021.59,0.00021643,2]
[368327485,1751121049798,-765.19,0.00021643,2]
[368327486,1751121049808,-851.31,0.00021643,2]
[368327487,1751121049817,-591.41,0.00021643,2]
[368327488,1751121049827,-460.0,0.00021643,2]
[368327489,1751121049836,-460.0,0.00021643,2]
[368327490,1751121049846,-4981.79,0.00021644,2]
[368327491,1751121049855,-2495.3,0.000217,2]
[368327492,1751121049864,-587.0,0.000217,2]
[368327493,1751121049874,-3222.09333918,0.00021762,5]
[368327494,1751121049884,-1000.0,0.00021802,2]
[368327495,1751121049894,-539.9007463,0.00021802,2]
[368327496,1751121049903,-1000.0,0.00021802,2]
[368327497,1751121049912,-1000.0,0.00021802,2]
[368327498,1751121049921,-5000.0,0.00021852,2]
[368327499,1751121049931,-1000.0,0.00021855,2]
[368327500,1751121049941,-1200.0,0.00021855,2]
[368327501,1751121049950,-1000.0,0.00021855,2]
[368327502,1751121049959,-1000.0,0.00021855,2]
[368327503,1751121049970,-1000.0,0.00021855,2]
[368327504,1751121049979,-151.0,0.00021917,2]
[368327505,1751121049989,-151.0,0.00021917,2]
[368327506,1751121049998,-460.0,0.00021917,2]
[368327507,1751121050007,-460.0,0.00021917,2]
[368327508,1751121050017,-460.0,0.00021917,2]
[368327509,1751121050026,-814.56,0.00021917,2]
[368327510,1751121050035,-460.0,0.00021917,2]
[368327511,1751121050044,-922.31,0.00021917,2]
[368327512,1751121050057,-460.0,0.00021917,2]
[368327513,1751121050067,-566.23,0.00021917,2]
[368327514,1751121050076,-1143.53,0.00021917,2]
[368327515,1751121050085,-460.0,0.00021917,2]
[368327516,1751121050095,-460.0,0.00021917,2]
[368327517,1751121050105,-460.0,0.00021917,2]
[368327518,1751121050115,-915.18,0.00021917,2]
[368327519,1751121050124,-460.0,0.00021917,2]
[368327520,1751121050135,-558.54562485,0.00021917,2]
[368327521,1751121050144,-1185.83,0.00021917,2]
[368327522,1751121050153,-460.0,0.00021917,2]
[368327523,1751121050163,-460.0,0.00021917,2]
[368327524,1751121050173,-615.29,0.00021917,2]
[368327525,1751121050182,-1009.76,0.00021917,2]
[368327526,1751121050192,-1416.99,0.00021917,2]
[368327527,1751121050202,-711.04,0.00021917,2]
[368327528,1751121050211,-460.0,0.00021917,2]
[368327529,1751121050221,-1085.24,0.00021917,2]
[368327530,1751121050230,-460.0,0.00021917,2]
[368327531,1751121050241,-2000.47,0.00021917,2]
[368327532,1751121050251,-460.0,0.00021917,2]
[368327533,1751121050260,-460.0,0.00021917,2]
[368327534,1751121050270,-464.32,0.00021917,2]
[368327535,1751121050279,-460.0,0.00021917,2]
[368327536,1751121050288,-1516.03,0.00021917,2]
[368327537,1751121050298,-2420.5,0.00021917,2]
[368327538,1751121050307,-2718.97,0.00021917,2]
[368327539,1751121050316,-907.82,0.00021917,2]
[368327540,1751121050326,-463.02,0.00021917,2]
[368327541,1751121050336,-460.0,0.00021917,2]
[368327542,1751121050345,-460.0,0.00021917,2]
[368327543,1751121050356,-1021.59,0.00021917,2]
[368327544,1751121050365,-765.19,0.00021917,2]
[368327545,1751121050375,-851.31,0.00021917,2]
[368327546,1751121050384,-591.41,0.00021917,2]
[368327547,1751121050393,-460.0,0.00021917,2]
[368327548,1751121050402,-460.0,0.00021917,2]
[368327549,1751121050412,-966.0,0.00021933,2]
[368327550,1751121050422,-2373.76502793,0.00021937,2]
[368327551,1751121050434,-3222.09333918,0.00021969,6]
[368327552,1751121050444,-1000.0,0.00021972,2]
[368327553,1751121050454,-1000.0,0.00021972,2]
[368327554,1751121050463,-300.0,0.00021972,2]
[368327555,1751121050473,-151.0,0.00022,7]
[368327556,1751121050482,-151.0,0.00022,7]
[368327557,1751121050491,-151.0,0.00022,7]
[368327558,1751121050500,-242.391581,0.00022,7]
[368327559,1751121050509,-151.0,0.00022,7]
[368327560,1751121050519,-151.0,0.00022,7]
[368327561,1751121050528,-470.80306,0.00022,7]
[368327562,1751121050537,-470.80306,0.00022,7]
[368327563,1751121050546,-90514.56,0.00022,7]
[368327564,1751121050555,-2780.28,0.00022,2]
[368327565,1751121050564,-7240.11,0.00022,7]
[368327566,1751121050574,-151.0,0.00022,4]
[368327567,1751121050583,-125161.98576368,0.00022,2]
[368327568,1751121050592,-10791.47300121,0.00022,2]
[368327569,1751121050602,-12115.65702577,0.00022,7]
[368327570,1751121050611,-12564.78152626,0.00022,7]
[368327571,1751121050620,-213.78848551,0.00022,7]
[368327572,1751121050629,-177.0,0.00022029,2]
[368327573,1751121050639,-151.0,0.00022066,5]
[368327574,1751121050648,-259.0,0.00022082,2]
[368327575,1751121050657,-259.0,0.00022083,2]
[368327576,1751121050667,-155.18730198,0.0002211,2]
[368327577,1751121050675,-155.18730198,0.0002211,2]
[368327578,1751121050684,-500.0,0.00022112,2]
[368327579,1751121050694,-2200.0,0.00022112,2]
[368327580,1751121050703,-290.888074,0.00022118,4]
[368327581,1751121050712,-1002.472439,0.00022133,2]
[368327582,1751121050727,-1000.0,0.00022133,2]
[368327583,1751121050736,-500.0,0.00022133,2]
[368327584,1751121050746,-1000.0,0.00022133,2]
[368327585,1751121050755,-500.0,0.00022133,2]
[368327586,1751121050765,-1000.0,0.00022133,2]
[368327587,1751121050774,-439.0,0.00022144,2]
[368327588,1751121050784,-3222.09333918,0.00022176,6]
[368327589,1751121050793,-460.0,0.00022191,2]
[368327590,1751121050803,-460.0,0.00022191,2]
[368327591,1751121050812,-460.0,0.00022191,2]
[368327592,1751121050821,-814.56,0.00022191,2]
[368327593,1751121050831,-460.0,0.00022191,2]
[368327594,1751121050840,-922.31,0.00022191,2]
[368327595,1751121050849,-460.0,0.00022191,2]
[368327596,1751121050859,-566.23,0.00022191,2]
[368327597,1751121050868,-1143.53,0.00022191,2]
[368327598,1751121050878,-460.0,0.00022191,2]
[368327599,1751121050888,-460.0,0.00022191,2]
[368327600,1751121050898,-460.0,0.00022191,2]
[368327601,1751121050907,-915.18,0.00022191,2]
[368327602,1751121050916,-460.0,0.00022191,2]
[368327603,1751121050926,-1185.83,0.00022191,2]
[368327604,1751121050935,-460.0,0.00022191,2]
[368327605,1751121050944,-460.0,0.00022191,2]
[368327606,1751121050954,-615.29,0.00022191,2]
[368327607,1751121050964,-1009.76,0.00022191,2]
[368327608,1751121050973,-1416.99,0.00022191,2]
[368327609,1751121050982,-711.04,0.00022191,2]
[368327610,1751121050992,-460.0,0.00022191,2]
[368327611,1751121051001,-1085.24,0.00022191,2]
[368327612,1751121051011,-460.0,0.00022191,2]
[368327613,1751121051020,-2000.47,0.00022191,2]
[368327614,1751121051029,-460.0,0.00022191,2]
[368327615,1751121051039,-460.0,0.00022191,2]
[368327616,1751121051048,-464.32,0.00022191,2]
[368327617,1751121051057,-458.72961461,0.00022191,2]
[368327618,1751121051067,-1516.03,0.00022191,2]
[368327619,1751121051076,-2420.5,0.00022191,2]
[368327620,1751121051085,-2718.97,0.00022191,2]
[368327621,1751121051095,-907.82,0.00022191,2]
[368327622,1751121051105,-463.02,0.00022191,2]
[368327623,1751121051114,-460.0,0.00022191,2]
[368327624,1751121051123,-460.0,0.00022191,2]
[368327625,1751121051135,-1021.59,0.00022191,2]
[368327626,1751121051144,-765.19,0.00022191,2]
[368327627,1751121051154,-851.31,0.00022191,2]
[368327628,1751121051164,-591.41,0.00022191,2]
[368327629,1751121051173,-460.0,0.00022191,2]
[368327630,1751121051182,-460.0,0.00022191,2]
[368327631,1751121051192,-151.0,0.000222,8]
[368327632,1751121051201,-215.0738,0.00022229,2]
[368327633,1751121051210,-151.0,0.00022234,5]